[Event "GER-ch Youth U10W 2020"]
[Site "Willingen"]
[Date "2020.10.28"]
[Round "2.9"]
[White "Tran, Hanna Emilie Mai Hoa"]
[Black "Schube, Theresa"]
[Result "0-1"]
[ECO "C50"]
[WhiteElo "986"]
[BlackElo "1131"]
[Annotator "NA RC"]
[PlyCount "140"]
[EventDate "2020.10.27"]
[EventType "swiss"]
[EventRounds "7"]
[EventCountry "GER"]
[SourceTitle "playchess.com"]
[Source "ChessBase"]
[SourceQuality "1"]
[TimeControl "40/4500+30:900+30"]

1. e4 {[%emt 0:00:00]} e5 {[%emt 0:00:00]} 2. Nf3 {[%emt 0:00:00]} Nc6 {[%emt 0:00:06]} 3. Bc4 {[%emt 0:00:55]} Bc5 {[%emt 0:00:41]} 4. O-O {[%emt 0:01:23]} d6 {[%emt 0:01:14]} 5. h3 {[%emt 0:00:53]} Nf6 {[%emt 0:01:45]} 6. d3 {[%emt 0:00:37]} h6 {[%emt 0:01:07]} 7. Nc3 {[%emt 0:02:35]} O-O {[%emt 0:02:42]} 8. Be3 {[%emt 0:01:42]} Bb6 {[%emt 0:01:52]} 9. d4 {[%emt 0:03:31]} Nxe4 {[%emt 0:07:28]} 10. Nxe4 {[%emt 0:01:28]} d5 {[%emt 0:00:21]} 11. Bd3 {[%emt 0:00:19]} exd4 {[%emt 0:02:58]} 12. Bf4 {[%emt 0:01:41]} dxe4 {[%emt 0:05:08]} 13. Bxe4 {[%emt 0:00:17]} Re8 {[%emt 0:06:20]} 14. Re1 {[%emt 0:01:31]} f5 {[%emt 0:06:34]} 15. Bd5+ {[%emt 0:02:47]} Kf8 {[%emt 0:04:22]} 16. Rxe8+ {[%emt 0:01:55]} Kxe8 {[%emt 0:03:33]} 17. Qe1+ {[%emt 0:01:26]} Qe7 {[%emt 0:02:31]} 18. Qxe7+ {[%emt 0:01:43]} Kxe7 {[%emt 0:01:37]} 19. Re1+ {[%emt 0:00:33]} Kf8 {[%emt 0:01:13]} 20. Ne5 {[%emt 0:00:44]} Nxe5 {[%emt 0:04:04]} 21. Rxe5 {[%emt 0:01:02]} c6 {[%emt 0:04:17]} 22. Bc4 {[%emt 0:01:35]} Bc7 {[%emt 0:01:26]} 23. Re2 {[%emt 0:01:54]} Bxf4 {[%emt 0:01:20]} 24. g3 {[%emt 0:00:34]} Bc7 {[%emt 0:02:19]} 25. Kg2 {[%emt 0:00:50]} Bd7 {[%emt 0:01:05]} 26. f3 {[%emt 0:00:25]} Re8 {[%emt 0:00:49]} 27. Rxe8+ {[%emt 0:00:21]} Bxe8 {[%emt 0:01:57]} 28. g4 {[%emt 0:00:41]} fxg4 {[%emt 0:01:03]} 29. hxg4 {[%emt 0:00:36]} Bf7 {[%emt 0:01:17]} 30. Bxf7 {[%emt 0:02:12]} Kxf7 {[%emt 0:01:36]} 31. Kf2 {[%emt 0:00:16]} Ke6 {[%emt 0:01:06]} 32. Ke2 {[%emt 0:00:18]} Kd5 {[%emt 0:01:30]} 33. Kd3 {[%emt 0:00:11]} c5 {[%emt 0:00:43]} 34. b3 {[%emt 0:00:36]} b5 {[%emt 0:00:52]} 35. c4+ {[%emt 0:00:28]} bxc4+ {[%emt 0:00:52]} 36. bxc4+ {[%emt 0:00:59]} Ke5 {[%emt 0:00:49]} 37. a3 {[%emt 0:00:33]} a5 {[%emt 0:00:49]} 38. a4 {[%emt 0:00:12]} Kf4 {[%emt 0:01:00]} 39. Ke2 {[%emt 0:00:19]} Kg3 {[%emt 0:01:48]} 40. Kd3 {[%emt 0:00:18]} Kxf3 {[%emt 0:02:21]} 41. Kd2 {[%emt 0:16:57]} Kxg4 {[%emt 0:16:23]} 42. Kd3 {[%emt 0:00:15]} h5 {[%emt 0:00:23]} 43. Ke4 {[%emt 0:00:08]} h4 {[%emt 0:00:19]} 44. Kd5 {[%emt 0:00:07]} h3 {[%emt 0:00:31]} 45. Kxc5 {[%emt 0:00:06]} h2 {[%emt 0:00:20]} 46. Kc6 {[%emt 0:00:07]} h1=Q+ {[%emt 0:00:28]} 47. Kxc7 {[%emt 0:00:04]} Qh6 {[%emt 0:00:32]} 48. c5 {[%emt 0:00:10]} g5 {[%emt 0:00:49]} 49. c6 {[%emt 0:00:07]} Qg7+ {[%emt 0:00:58]} 50. Kb6 {[%emt 0:00:12]} Qf8 {[%emt 0:00:28]} 51. Kxa5 {[%emt 0:00:13]} Qc8 {[%emt 0:00:32]} 52. Kb6 {[%emt 0:00:13]} Qb8+ {[%emt 0:00:47]} 53. Kc5 {[%emt 0:00:20]} Qc7 {[%emt 0:00:33]} 54. a5 {[%emt 0:00:17]} Qxa5+ {[%emt 0:00:24]} 55. Kd6 {[%emt 0:00:07]} Qc3 {[%emt 0:00:25]} 56. c7 {[%emt 0:00:39]} Qxc7+ {[%emt 0:00:15]} 57. Kxc7 {[%emt 0:00:09]} d3 {[%emt 0:00:07]} 58. Kd6 {[%emt 0:00:05]} d2 {[%emt 0:00:08]} 59. Ke5 {[%emt 0:00:04]} d1=Q {[%emt 0:00:10]} 60. Ke6 {[%emt 0:00:20]} Qa4 {[%emt 0:00:29]} 61. Ke5 {[%emt 0:01:21]} Qf4+ {[%emt 0:00:36]} 62. Kd5 {[%emt 0:00:23]} Kf3 {[%emt 0:00:12]} 63. Ke6 {[%emt 0:00:15]} Ke4 {[%emt 0:00:17]} 64. Kd7 {[%emt 0:00:15]} Qf6 {[%emt 0:00:24]} 65. Kc7 {[%emt 0:00:09]} Kd5 {[%emt 0:00:19]} 66. Kb7 {[%emt 0:00:11]} Qc6+ {[%emt 0:00:21]} 67. Ka7 {[%emt 0:00:15]} Kc5 {[%emt 0:00:13]} 68. Kb8 {[%emt 0:00:08]} Qd7 {[%emt 0:00:09]} 69. Ka8 {[%emt 0:00:12]} Kb6 {[%emt 0:00:08]} 70. Kb8 {[%emt 0:00:05]} Qd8# 0-1

[Event "GER-ch Youth U10W 2020"]
[Site "Willingen"]
[Date "2020.10.28"]
[Round "2.12"]
[White "Neininger, Sarah"]
[Black "Peglau, Lorena"]
[Result "1-0"]
[ECO "B10"]
[WhiteElo "1469"]
[BlackElo "1061"]
[Annotator "NA RC"]
[PlyCount "103"]
[EventDate "2020.10.27"]
[EventType "swiss"]
[EventRounds "7"]
[EventCountry "GER"]
[SourceTitle "playchess.com"]
[Source "ChessBase"]
[SourceQuality "1"]
[TimeControl "40/4500+30:900+30"]

1. e4 {[%emt 0:00:00]} c6 {[%emt 0:00:00]} 2. Nf3 {[%emt 0:00:00]} d5 {[%emt 0:00:00]} 3. Nc3 {[%emt 0:00:00]} dxe4 {[%emt 0:00:00]} 4. Nxe4 {[%emt 0:00:01]} Bf5 {[%emt 0:00:14]} 5. Ng3 {[%emt 0:00:13]} Bg6 {[%emt 0:00:10]} 6. h4 {[%emt 0:00:19]} h6 {[%emt 0:00:08]} 7. Ne5 {[%emt 0:00:16]} Bh7 {[%emt 0:00:23]} 8. Qh5 {[%emt 0:00:23]} Qd5 {[%emt 0:01:13]} 9. Bc4 {[%emt 0:00:45]} Nf6 {[%emt 0:01:44]} 10. Bxd5 {[%emt 0:01:09]} Nxh5 {[%emt 0:00:20]} 11. Bxf7+ {[%emt 0:00:32]} Kd8 {[%emt 0:00:36]} 12. Bxh5 {[%emt 0:00:33]} Kc7 {[%emt 0:00:21]} 13. Bg6 Bg8 {[%emt 0:00:44]} 14. Nf7 {[%emt 0:01:36]} Bxf7 {[%emt 0:00:08]} 15. Bxf7 {[%emt 0:00:09]} Na6 {[%emt 0:00:58]} 16. d4 {[%emt 0:01:08]} e6 {[%emt 0:00:21]} 17. Bf4+ Kb6 {[%emt 0:00:37]} 18. O-O {[%emt 0:02:54]} Rd8 {[%emt 0:00:25]} 19. Bxe6 {[%emt 0:00:39]} Rxd4 {[%emt 0:00:12]} 20. Be3 {[%emt 0:00:20]} Bc5 {[%emt 0:00:38]} 21. Bxd4 {[%emt 0:00:38]} Bxd4 {[%emt 0:00:12]} 22. c3 {[%emt 0:00:44]} Be5 {[%emt 0:00:32]} 23. Nf5 {[%emt 0:01:25]} g6 {[%emt 0:00:23]} 24. Ne3 {[%emt 0:00:40]} g5 {[%emt 0:00:21]} 25. h5 {[%emt 0:00:33]} Nc5 {[%emt 0:00:18]} 26. Nc4+ {[%emt 0:01:06]} Kc7 {[%emt 0:00:17]} 27. Nxe5 {[%emt 0:00:34]} Nxe6 {[%emt 0:00:12]} 28. Rad1 {[%emt 0:00:18]} Kb6 {[%emt 0:00:21]} 29. Rfe1 {[%emt 0:01:32]} Ng7 {[%emt 0:00:18]} 30. Nc4+ {[%emt 0:00:54]} Kc7 {[%emt 0:00:29]} 31. Re7+ {[%emt 0:00:26]} Kc8 {[%emt 0:00:13]} 32. Rxg7 {[%emt 0:00:23]} b5 {[%emt 0:00:14]} 33. Nd6+ {[%emt 0:00:29]} Kb8 {[%emt 0:00:13]} 34. Nf7 {[%emt 0:00:39]} Re8 {[%emt 0:00:13]} 35. Rd8+ {[%emt 0:00:21]} Rxd8 {[%emt 0:00:11]} 36. Nxd8 {[%emt 0:00:10]} Kc8 {[%emt 0:00:09]} 37. Nf7 {[%emt 0:00:19]} Kb7 {[%emt 0:00:12]} 38. Nxh6+ {[%emt 0:00:16]} Kb6 {[%emt 0:00:08]} 39. Nf5 {[%emt 0:00:15]} g4 {[%emt 0:00:09]} 40. h6 {[%emt 0:00:18]} g3 {[%emt 0:00:07]} 41. Rxg3 {[%emt 0:15:11]} Ka5 {[%emt 0:15:15]} 42. Rg4 {[%emt 0:00:17]} b4 {[%emt 0:00:11]} 43. Rxb4 {[%emt 0:00:30]} a6 {[%emt 0:00:17]} 44. h7 {[%emt 0:00:33]} c5 {[%emt 0:00:07]} 45. Re4 {[%emt 0:00:20]} c4 {[%emt 0:00:12]} 46. h8=Q {[%emt 0:00:14]} Ka4 {[%emt 0:00:15]} 47. Qe8+ {[%emt 0:00:23]} Ka5 {[%emt 0:00:18]} 48. Re5+ {[%emt 0:00:25]} Kb6 {[%emt 0:00:17]} 49. Qb8+ {[%emt 0:00:48]} Kc6 {[%emt 0:00:15]} 50. Qd6+ {[%emt 0:00:13]} Kb7 {[%emt 0:00:14]} 51. Re7+ {[%emt 0:00:13]} Kc8 {[%emt 0:00:15]} 52. Qc7# 1-0

[Event "GER-ch Youth U10W 2020"]
[Site "Willingen"]
[Date "2020.10.28"]
[Round "2.13"]
[White "Mo, Keyou"]
[Black "Halas, Neele Zoe"]
[Result "0-1"]
[ECO "C50"]
[WhiteElo "950"]
[BlackElo "1295"]
[Annotator "NA RC"]
[PlyCount "86"]
[EventDate "2020.10.27"]
[EventType "swiss"]
[EventRounds "7"]
[EventCountry "GER"]
[SourceTitle "playchess.com"]
[Source "ChessBase"]
[SourceQuality "1"]
[TimeControl "40/4500+30:900+30"]

1. e4 {[%emt 0:00:00]} e5 {[%emt 0:00:00]} 2. Nf3 {[%emt 0:00:00]} Nc6 {[%emt 0:00:00]} 3. Bc4 {[%emt 0:00:00]} Bc5 {[%emt 0:00:00]} 4. O-O {[%emt 0:00:00]} Nf6 {[%emt 0:00:07]} 5. d3 {[%emt 0:00:06]} d6 {[%emt 0:00:08]} 6. Bg5 {[%emt 0:00:43]} h6 {[%emt 0:00:17]} 7. Bh4 {[%emt 0:00:21]} g5 {[%emt 0:02:04]} 8. Bg3 {[%emt 0:00:21]} Bg4 {[%emt 0:00:29]} 9. h3 {[%emt 0:00:11]} Be6 {[%emt 0:02:36]} 10. Bb3 {[%emt 0:03:03]} Qd7 {[%emt 0:02:29]} 11. Bxe6 {[%emt 0:02:59]} fxe6 {[%emt 0:01:31]} 12. Nc3 {[%emt 0:04:21]} O-O-O {[%emt 0:02:20]} 13. Qd2 {[%emt 0:03:47]} Nh5 {[%emt 0:06:55]} 14. Bh2 {[%emt 0:06:02]} Nf4 {[%emt 0:01:21]} 15. Bxf4 {[%emt 0:02:59]} exf4 {[%emt 0:00:13]} 16. d4 {[%emt 0:01:51]} Bb6 {[%emt 0:00:32]} 17. d5 {[%emt 0:02:48]} Ne7 {[%emt 0:04:24]} 18. Nd4 {[%emt 0:05:21]} Bxd4 {[%emt 0:05:04]} 19. Qxd4 {[%emt 0:01:34]} e5 {[%emt 0:00:07]} 20. Qxa7 {[%emt 0:01:04]} c6 {[%emt 0:03:52]} 21. Na4 {[%emt 0:04:11]} Qe8 {[%emt 0:08:06]} 22. Rab1 {[%emt 0:07:29]} cxd5 {[%emt 0:01:40]} 23. Nb6+ {[%emt 0:04:38]} Kc7 {[%emt 0:01:46]} 24. exd5 {[%emt 0:01:21]} Qb5 {[%emt 0:00:50]} 25. c4 {[%emt 0:15:10]} Qxb6 {[%emt 0:00:24]} 26. Qxb6+ {[%emt 0:00:18]} Kxb6 {[%emt 0:00:26]} 27. b3 {[%emt 0:00:28]} Nf5 {[%emt 0:00:19]} 28. a4 {[%emt 0:00:51]} Ra8 {[%emt 0:00:40]} 29. Ra1 {[%emt 0:01:14]} Kc5 {[%emt 0:00:16]} 30. a5 {[%emt 0:00:49]} Kb4 {[%emt 0:00:12]} 31. Rfb1 {[%emt 0:01:05]} Rxa5 {[%emt 0:00:30]} 32. Rxa5 {[%emt 0:00:14]} Kxa5 33. b4+ {[%emt 0:00:05]} Kb6 {[%emt 0:01:00]} 34. f3 {[%emt 0:00:10]} Rc8 {[%emt 0:00:14]} 35. g4 {[%emt 0:00:14]} Nd4 {[%emt 0:00:28]} 36. Rc1 {[%emt 0:00:45]} Ne2+ {[%emt 0:00:03]} 37. Kf2 {[%emt 0:00:22]} Nxc1 {[%emt 0:00:07]} 38. Ke1 {[%emt 0:01:22]} Rxc4 {[%emt 0:00:17]} 39. Kd2 {[%emt 0:00:09]} Kb5 40. Kd1 Rc3 {[%emt 0:00:41]} 41. Kd2 {[%emt 0:15:37]} Kc4 {[%emt 0:15:12]} 42. Ke1 {[%emt 0:00:30]} Rc2 {[%emt 0:00:32]} 43. Kd1 {[%emt 0:00:00]} Nd3 {[%emt 0:00:00]} 0-1

[Event "GER-ch Youth U10W 2020"]
[Site "Willingen"]
[Date "2020.10.28"]
[Round "2.14"]
[White "Becker, Hanna Charlotte"]
[Black "Mehner, Clara"]
[Result "0-1"]
[ECO "D06"]
[WhiteElo "853"]
[BlackElo "1244"]
[Annotator "NA RC"]
[PlyCount "90"]
[EventDate "2020.10.27"]
[EventType "swiss"]
[EventRounds "7"]
[EventCountry "GER"]
[SourceTitle "playchess.com"]
[Source "ChessBase"]
[SourceQuality "1"]
[TimeControl "40/4500+30:900+30"]

1. d4 {[%emt 0:00:00]} d5 {[%emt 0:00:00]} 2. c4 {[%emt 0:00:00]} Nf6 {[%emt 0:00:21]} 3. cxd5 {[%emt 0:00:03]} Nxd5 {[%emt 0:00:37]} 4. e4 {[%emt 0:00:19]} Nb6 {[%emt 0:01:06]} 5. Nf3 {[%emt 0:00:47]} e6 {[%emt 0:02:15]} 6. Bb5+ {[%emt 0:02:14]} Bd7 {[%emt 0:01:16]} 7. Nc3 {[%emt 0:01:44]} Bxb5 {[%emt 0:03:18]} 8. Nxb5 {[%emt 0:01:53]} c5 {[%emt 0:02:20]} 9. Bf4 {[%emt 0:00:21]} Nc6 {[%emt 0:07:13]} 10. Nc7+ {[%emt 0:01:22]} Ke7 {[%emt 0:11:30]} 11. Nxa8 {[%emt 0:03:11]} Nxa8 {[%emt 0:03:43]} 12. Be3 {[%emt 0:01:16]} c4 {[%emt 0:09:56]} 13. Bg5+ {[%emt 0:00:49]} f6 {[%emt 0:01:09]} 14. Bf4 {[%emt 0:02:03]} Kf7 {[%emt 0:06:53]} 15. O-O {[%emt 0:00:34]} g5 {[%emt 0:02:36]} 16. Bg3 {[%emt 0:01:39]} h5 {[%emt 0:04:08]} 17. h3 {[%emt 0:00:38]} Ne7 {[%emt 0:07:11]} 18. e5 {[%emt 0:01:12]} Ng6 {[%emt 0:04:13]} 19. h4 g4 20. Ne1 {[%emt 0:03:44]} f5 {[%emt 0:02:01]} 21. Rc1 {[%emt 0:01:22]} f4 {[%emt 0:01:07]} 22. Bh2 {[%emt 0:00:26]} b5 {[%emt 0:00:30]} 23. a4 {[%emt 0:00:35]} a6 {[%emt 0:00:57]} 24. b3 {[%emt 0:01:32]} Qxh4 {[%emt 0:03:06]} 25. axb5 {[%emt 0:00:42]} axb5 {[%emt 0:01:02]} 26. bxc4 {[%emt 0:00:15]} bxc4 {[%emt 0:00:27]} 27. Rxc4 {[%emt 0:00:09]} Be7 {[%emt 0:00:48]} 28. Qa4 {[%emt 0:03:47]} Nb6 {[%emt 0:01:07]} 29. Qa6 {[%emt 0:04:07]} Nxc4 {[%emt 0:00:03]} 30. Qxc4 {[%emt 0:00:07]} g3 {[%emt 0:00:19]} 31. fxg3 {[%emt 0:00:41]} Qg4 {[%emt 0:00:39]} 32. gxf4 {[%emt 0:01:00]} Kg7 {[%emt 0:00:50]} 33. Nd3 {[%emt 0:01:25]} Nh4 {[%emt 0:01:39]} 34. Rf2 {[%emt 0:01:22]} Rg8 {[%emt 0:01:35]} 35. g3 {[%emt 0:00:15]} Qd1+ {[%emt 0:01:27]} 36. Rf1 {[%emt 0:00:50]} Nf3+ {[%emt 0:01:06]} 37. Kg2 {[%emt 0:01:11]} Qe2+ {[%emt 0:00:58]} 38. Rf2 {[%emt 0:00:44]} Ne1+ {[%emt 0:01:15]} 39. Kh1 {[%emt 0:01:19]} Qe4+ {[%emt 0:00:56]} 40. Kg1 {[%emt 0:00:13]} Rb8 {[%emt 0:00:21]} 41. Qc3 {[%emt 0:16:04]} Bb4 {[%emt 0:16:14]} 42. Qa1 {[%emt 0:00:43]} Qe3 {[%emt 0:01:23]} 43. Kh1 {[%emt 0:00:53]} Kg6 {[%emt 0:00:50]} 44. Qb1 {[%emt 0:00:56]} Kh6 {[%emt 0:00:39]} 45. Qd1 {[%emt 0:03:05]} Qe4+ {[%emt 0:00:00]} 0-1

[Event "GER-ch Youth U10W 2020"]
[Site "Willingen"]
[Date "2020.10.28"]
[Round "2.15"]
[White "Tu, Audrey"]
[Black "Bako, Isabella"]
[Result "0-1"]
[ECO "B50"]
[WhiteElo "754"]
[BlackElo "1153"]
[Annotator "NA RC"]
[PlyCount "102"]
[EventDate "2020.10.27"]
[EventType "swiss"]
[EventRounds "7"]
[EventCountry "GER"]
[SourceTitle "playchess.com"]
[Source "ChessBase"]
[SourceQuality "1"]
[TimeControl "40/4500+30:900+30"]

1. e4 {[%emt 0:00:00]} c5 {[%emt 0:00:00]} 2. Nf3 {[%emt 0:00:00]} d6 {[%emt 0:00:02]} 3. Bc4 {[%emt 0:00:13]} e6 {[%emt 0:00:46]} 4. O-O {[%emt 0:00:34]} Nc6 {[%emt 0:03:26]} 5. d3 {[%emt 0:01:47]} Nf6 {[%emt 0:02:39]} 6. Nc3 {[%emt 0:00:45]} g6 {[%emt 0:03:49]} 7. Bg5 {[%emt 0:01:36]} Bg7 {[%emt 0:01:25]} 8. Re1 {[%emt 0:03:02]} Qc7 {[%emt 0:08:38]} 9. Nb5 {[%emt 0:05:21]} Qb8 {[%emt 0:03:58]} 10. Qd2 {[%emt 0:06:09]} O-O {[%emt 0:05:43]} 11. Qc3 {[%emt 0:02:23]} Nxe4 {[%emt 0:06:26]} 12. Qb3 {[%emt 0:01:58]} Nxg5 {[%emt 0:02:59]} 13. Nxg5 {[%emt 0:00:34]} a6 {[%emt 0:03:22]} 14. Nc3 {[%emt 0:05:13]} d5 {[%emt 0:03:59]} 15. Bxd5 {[%emt 0:04:14]} exd5 {[%emt 0:02:39]} 16. Qxd5 {[%emt 0:04:38]} h6 {[%emt 0:06:21]} 17. Nf3 {[%emt 0:03:22]} Nb4 {[%emt 0:05:34]} 18. Qb3 {[%emt 0:02:36]} Be6 {[%emt 0:02:18]} 19. Rxe6 {[%emt 0:03:52]} fxe6 {[%emt 0:02:11]} 20. Qxe6+ {[%emt 0:01:53]} Kh7 {[%emt 0:01:09]} 21. Qe7 {[%emt 0:02:00]} b6 {[%emt 0:05:11]} 22. Re1 {[%emt 0:03:41]} Re8 {[%emt 0:03:36]} 23. Qxe8 {[%emt 0:03:42]} Qxe8 {[%emt 0:00:16]} 24. Rxe8 {[%emt 0:00:37]} Rxe8 {[%emt 0:00:05]} 25. h3 {[%emt 0:00:17]} Bxc3 {[%emt 0:01:05]} 26. a3 {[%emt 0:01:30]} Nxc2 {[%emt 0:00:54]} 27. bxc3 {[%emt 0:00:24]} Nxa3 {[%emt 0:00:11]} 28. d4 {[%emt 0:02:28]} cxd4 {[%emt 0:00:55]} 29. cxd4 {[%emt 0:00:08]} Rd8 {[%emt 0:00:45]} 30. g4 {[%emt 0:00:35]} Nb5 {[%emt 0:00:23]} 31. h4 {[%emt 0:02:08]} Nxd4 {[%emt 0:00:08]} 32. Nd2 {[%emt 0:01:26]} Ne2+ {[%emt 0:00:29]} 33. Kf1 {[%emt 0:00:15]} Rxd2 {[%emt 0:00:09]} 34. Ke1 {[%emt 0:00:20]} Rc2 {[%emt 0:00:19]} 35. Kd1 {[%emt 0:00:13]} Nd4 {[%emt 0:00:28]} 36. f4 {[%emt 0:00:35]} b5 {[%emt 0:00:16]} 37. f5 {[%emt 0:00:18]} gxf5 {[%emt 0:00:13]} 38. gxf5 {[%emt 0:00:12]} Rc6 {[%emt 0:00:24]} 39. Kd2 {[%emt 0:00:36]} Nxf5 {[%emt 0:00:22]} 40. h5 {[%emt 0:00:10]} b4 {[%emt 0:00:13]} 41. Kd3 {[%emt 0:15:12]} b3 {[%emt 0:15:10]} 42. Ke4 {[%emt 0:00:05]} b2 {[%emt 0:00:18]} 43. Kxf5 {[%emt 0:00:06]} b1=Q+ {[%emt 0:00:15]} 44. Ke5 {[%emt 0:00:45]} Qd1 {[%emt 0:00:20]} 45. Ke4 {[%emt 0:00:16]} Re6+ {[%emt 0:00:12]} 46. Kf4 {[%emt 0:00:13]} Qf1+ {[%emt 0:00:18]} 47. Kg3 {[%emt 0:00:02]} Re4 {[%emt 0:00:47]} 48. Kh2 Qf3 {[%emt 0:00:03]} 49. Kg1 {[%emt 0:20:37]} Rg4+ {[%emt 0:00:36]} 50. Kh2 {[%emt 0:00:25]} Qf2+ {[%emt 0:00:23]} 51. Kh3 {[%emt 0:00:18]} Qh4# 0-1

[Event "GER-ch Youth U10W 2020"]
[Site "Willingen"]
[Date "2020.10.28"]
[Round "2.16"]
[White "Richter, Johanna"]
[Black "Le, Thi An"]
[Result "1-0"]
[ECO "E61"]
[WhiteElo "1150"]
[BlackElo "976"]
[Annotator "NA RC"]
[PlyCount "83"]
[EventDate "2020.10.27"]
[EventType "swiss"]
[EventRounds "7"]
[EventCountry "GER"]
[SourceTitle "playchess.com"]
[Source "ChessBase"]
[SourceQuality "1"]
[TimeControl "40/4500+30:900+30"]

1. d4 {[%emt 0:00:00]} Nf6 {[%emt 0:00:00]} 2. c4 {[%emt 0:00:00]} g6 {[%emt 0:00:00]} 3. Nc3 {[%emt 0:00:00]} Bg7 {[%emt 0:00:00]} 4. Nf3 {[%emt 0:00:00]} O-O {[%emt 0:00:00]} 5. g3 {[%emt 0:00:01]} d6 {[%emt 0:00:09]} 6. Bg2 {[%emt 0:00:05]} c6 {[%emt 0:00:08]} 7. O-O {[%emt 0:00:18]} a6 {[%emt 0:00:07]} 8. a4 {[%emt 0:00:20]} a5 {[%emt 0:00:11]} 9. b3 {[%emt 0:04:08]} Na6 {[%emt 0:00:15]} 10. Bd2 {[%emt 0:04:46]} Nb4 {[%emt 0:00:31]} 11. Qc1 {[%emt 0:02:06]} Be6 {[%emt 0:00:49]} 12. Bh6 {[%emt 0:02:30]} Qd7 {[%emt 0:01:56]} 13. Bxg7 {[%emt 0:01:55]} Kxg7 {[%emt 0:00:12]} 14. Ng5 {[%emt 0:03:15]} Bf5 {[%emt 0:01:28]} 15. e4 {[%emt 0:01:15]} Bg4 {[%emt 0:00:36]} 16. f3 {[%emt 0:01:39]} Be6 {[%emt 0:00:47]} 17. Nxe6+ {[%emt 0:00:40]} fxe6 {[%emt 0:00:40]} 18. Rd1 {[%emt 0:02:35]} Qc7 {[%emt 0:00:44]} 19. Ne2 {[%emt 0:01:36]} Nh5 {[%emt 0:02:04]} 20. Qb2 {[%emt 0:02:57]} Kg8 {[%emt 0:00:45]} 21. Rac1 {[%emt 0:01:29]} Qb6 {[%emt 0:01:21]} 22. Kh1 {[%emt 0:02:20]} c5 {[%emt 0:00:39]} 23. Bh3 {[%emt 0:00:52]} Rf6 {[%emt 0:00:20]} 24. d5 {[%emt 0:05:23]} exd5 {[%emt 0:01:16]} 25. exd5 {[%emt 0:02:52]} Raf8 {[%emt 0:00:29]} 26. Rc3 Kf7 {[%emt 0:00:56]} 27. Bd7 {[%emt 0:09:26]} Qc7 {[%emt 0:01:07]} 28. Be6+ {[%emt 0:03:18]} Ke8 {[%emt 0:00:33]} 29. Re1 {[%emt 0:03:42]} Rxf3 {[%emt 0:02:04]} 30. Rxf3 {[%emt 0:00:16]} Rxf3 {[%emt 0:00:41]} 31. Qh8+ {[%emt 0:00:12]} Rf8 {[%emt 0:00:13]} 32. Qxh7 {[%emt 0:00:53]} Nf6 {[%emt 0:01:11]} 33. Qxg6+ {[%emt 0:01:01]} Kd8 {[%emt 0:00:18]} 34. Nf4 {[%emt 0:01:24]} Qb6 {[%emt 0:01:00]} 35. Bh3 {[%emt 0:00:36]} Rg8 {[%emt 0:00:36]} 36. Qf7 {[%emt 0:01:36]} Kc7 {[%emt 0:02:14]} 37. Rxe7+ {[%emt 0:00:46]} Kb8 {[%emt 0:00:33]} 38. Qxf6 {[%emt 0:00:36]} Qd8 {[%emt 0:01:07]} 39. Qf7 {[%emt 0:01:17]} Na6 {[%emt 0:01:00]} 40. Rxb7+ {[%emt 0:00:27]} Ka8 {[%emt 0:00:24]} 41. Ra7+ {[%emt 0:15:20]} Kb8 {[%emt 0:15:10]} 42. Qb7# {[%emt 0:00:12]} 1-0

[Event "GER-ch Youth U10W 2020"]
[Site "Willingen"]
[Date "2020.10.28"]
[Round "2.17"]
[White "Wolf, Anna"]
[Black "Rössling, Laura Marie"]
[Result "1/2-1/2"]
[ECO "C50"]
[WhiteElo "1098"]
[BlackElo "937"]
[Annotator "NA RC"]
[PlyCount "107"]
[EventDate "2020.10.27"]
[EventType "swiss"]
[EventRounds "7"]
[EventCountry "GER"]
[SourceTitle "playchess.com"]
[Source "ChessBase"]
[SourceQuality "1"]
[TimeControl "40/4500+30:900+30"]

1. e4 {[%emt 0:00:00]} e5 {[%emt 0:01:33]} 2. Nf3 {[%emt 0:00:00]} Nc6 {[%emt 0:00:09]} 3. Bc4 {[%emt 0:00:03]} Bc5 {[%emt 0:00:13]} 4. d3 {[%emt 0:00:23]} Nf6 {[%emt 0:02:11]} 5. O-O {[%emt 0:00:35]} d6 {[%emt 0:00:22]} 6. Bg5 {[%emt 0:00:48]} h6 {[%emt 0:02:02]} 7. Be3 {[%emt 0:00:42]} Bxe3 {[%emt 0:01:26]} 8. fxe3 {[%emt 0:00:41]} Be6 {[%emt 0:02:41]} 9. Bb5 {[%emt 0:00:58]} Qd7 {[%emt 0:01:52]} 10. h3 {[%emt 0:00:25]} O-O-O {[%emt 0:02:10]} 11. c4 {[%emt 0:01:43]} a6 {[%emt 0:01:27]} 12. Bxc6 {[%emt 0:01:28]} Qxc6 {[%emt 0:01:49]} 13. Nc3 {[%emt 0:01:29]} Qb6 {[%emt 0:02:41]} 14. Qe2 {[%emt 0:01:37]} Rhe8 {[%emt 0:03:03]} 15. b3 {[%emt 0:02:40]} g5 {[%emt 0:02:31]} 16. Nh2 {[%emt 0:02:01]} Nd7 {[%emt 0:02:43]} 17. Nd5 {[%emt 0:01:43]} Bxd5 {[%emt 0:01:14]} 18. exd5 {[%emt 0:00:36]} f6 {[%emt 0:01:21]} 19. Ng4 {[%emt 0:00:19]} Rf8 {[%emt 0:01:19]} 20. Nxh6 {[%emt 0:00:34]} Rde8 {[%emt 0:02:11]} 21. Nf5 {[%emt 0:01:48]} Nc5 {[%emt 0:04:08]} 22. Kh1 {[%emt 0:02:40]} c6 {[%emt 0:03:09]} 23. Nxd6+ {[%emt 0:03:47]} Kb8 {[%emt 0:00:44]} 24. Nxe8 {[%emt 0:00:16]} Rxe8 {[%emt 0:01:34]} 25. Rxf6 {[%emt 0:00:49]} e4 {[%emt 0:02:00]} 26. d4 {[%emt 0:01:36]} Nd3 {[%emt 0:02:07]} 27. Rg6 {[%emt 0:01:39]} Qd8 {[%emt 0:03:36]} 28. Kg1 {[%emt 0:01:17]} cxd5 {[%emt 0:01:23]} 29. cxd5 {[%emt 0:00:47]} Qxd5 {[%emt 0:01:50]} 30. Qg4 {[%emt 0:00:42]} Rg8 {[%emt 0:02:22]} 31. Re6 {[%emt 0:00:53]} Rc8 {[%emt 0:03:17]} 32. Qxe4 {[%emt 0:01:24]} Qb5 {[%emt 0:01:12]} 33. Kh2 {[%emt 0:01:41]} Nf2 {[%emt 0:00:56]} 34. Qe5+ {[%emt 0:01:31]} Ka8 {[%emt 0:01:43]} 35. Qxb5 {[%emt 0:00:00]} axb5 {[%emt 0:00:33]} 36. Re5 {[%emt 0:00:00]} g4 {[%emt 0:00:42]} 37. Rxb5 {[%emt 0:00:07]} gxh3 {[%emt 0:00:25]} 38. gxh3 {[%emt 0:00:40]} Ne4 39. a4 {[%emt 0:01:08]} Rc2+ {[%emt 0:00:25]} 40. Kg1 {[%emt 0:00:41]} Nd6 {[%emt 0:01:41]} 41. Rc5 {[%emt 0:18:44]} Rxc5 {[%emt 0:15:52]} 42. dxc5 {[%emt 0:00:09]} Ne4 {[%emt 0:01:03]} 43. b4 {[%emt 0:00:20]} Nc3 {[%emt 0:01:36]} 44. b5 {[%emt 0:00:41]} Nd5 {[%emt 0:00:40]} 45. b6 {[%emt 0:00:44]} Nxe3 {[%emt 0:00:33]} 46. Re1 {[%emt 0:00:15]} Kb8 {[%emt 0:00:34]} 47. Rxe3 {[%emt 0:00:13]} Kc8 {[%emt 0:00:24]} 48. h4 {[%emt 0:00:09]} Kd7 {[%emt 0:00:21]} 49. h5 {[%emt 0:00:00]} Kc6 {[%emt 0:00:00]} 50. h6 {[%emt 0:00:00]} Kd5 {[%emt 0:00:00]} 51. h7 {[%emt 0:00:05]} Kxc5 {[%emt 0:00:00]} 52. h8=Q {[%emt 0:00:00]} Kd5 {[%emt 0:00:00]} 53. Qd8+ {[%emt 0:00:10]} Kc4 {[%emt 0:00:00]} 54. Qd6 {[%emt 0:02:13]} 1/2-1/2